{"text_format":"3","workbook":"xlsx","n_sheets":2,"sheets":["INICIO","PRESUPUESTO MENSUAL PERSONAL"],"read":"whole","date_system":"1900"}

{"sheet":"INICIO","index":0,"n_rows":7,"n_cols":2,"rows_kept":7}
[null,"INFORMACIÓN SOBRE ESTA PLANTILLA"]
[null,"Use esta hoja de cálculo de presupuesto mensual personal para realizar un seguimiento de sus ingresos mensuales previstos y reales, así como de sus gastos mensuales previstos y reales."]
[null,"Escriba los gastos realizados divididos en diferentes categorías en las tablas correspondientes."]
[null,"El saldo previsto, el saldo real y la diferencia se calculan automáticamente."]
[null,"Nota: "]
[null,"Se facilitan instrucciones adicionales en la columna A de la hoja de cálculo PRESUPUESTO MENSUAL PERSONAL. Este texto se ha ocultado a propósito. Para eliminar el texto, seleccione la columna A y, a continuación, ELIMINAR. Para mostrar el texto, seleccione la columna A y, a continuación, cambie el color de fuente."]
[null,"Para obtener más información sobre las tablas de la hoja de cálculo, presione las teclas MAYÚS y F10 dentro de una tabla, seleccione la opción TABLA y, a continuación, TEXTO ALTERNATIVO."]

{"sheet":"PRESUPUESTO MENSUAL PERSONAL","index":1,"n_rows":64,"n_cols":10,"rows_kept":64,"merged":[[3,1,5,1],[3,2,3,3],[3,6,4,8],[3,9,4,9],[4,2,4,3],[5,2,5,3],[5,6,6,8],[5,9,6,9],[7,1,9,1],[7,2,7,3],[7,6,8,8],[7,9,8,9],[8,2,8,3],[9,2,9,3],[58,6,59,8],[58,9,59,9],[60,6,61,8],[60,9,61,9],[62,6,63,8],[62,9,63,9]]}
["Cree un presupuesto mensual personal en esta hoja de cálculo. Encontrará instrucciones útiles sobre cómo usar esta hoja de cálculo en las celdas de esta columna. Presione la flecha abajo para empezar."]
["El título de esta hoja de cálculo se encuentra en la celda de la derecha. La instrucción siguiente se encuentra en la celda A4.","PRESUPUESTO MENSUAL PERSONAL"]
[]
["La etiqueta Ingresos mensuales previstos se encuentra en la celda de la derecha. Escriba el Ingreso 1 en la celda E4 y el Ingreso adicional en la E5 para calcular el total de ingresos mensuales en la celda E6. La instrucción siguiente se encuentra en la celda A6.","INGRESOS MENSUALES PREVISTOS","Ingreso 1",null,{"v":4300,"d":"4,300.00 €"},null,"SALDO PREVISTO \n(ingresos previstos menos gastos)",null,null,{"$f":"E6-J59","v":{"v":3405,"d":"3,405.00 €"}}]
[null,null,"Ingresos adicionales",null,{"v":300,"d":"300.00 €"}]
["El saldo previsto se calcula automáticamente en la celda J4; el saldo real, en la J6; y la diferencia, en la celda J8. La instrucción siguiente se encuentra en la celda A8.",null,"Total de ingresos mensuales",null,{"$f":"SUM(E4:E5)","v":{"v":4600,"d":"4,600.00 €"}},null,"SALDO REAL \n(ingresos reales menos gastos)",null,null,{"$f":"E10-J61","v":{"v":3064,"d":"3,064.00 €"}}]
[]
["La etiqueta Ingresos mensuales reales se encuentra en la celda de la derecha. Escriba el Ingreso 1 en la celda E8 y el Ingreso adicional en la E9 para calcular el total de ingresos mensuales en la celda E10. La instrucción siguiente se encuentra en la celda A12.","INGRESOS MENSUALES REALES","Ingreso 1",null,{"v":4000,"d":"4,000.00 €"},null,"DIFERENCIA \n(real menos estimado)",null,null,{"$f":"J6-J4","v":{"v":-341,"d":"-341.00 €"}}]
[null,null,"Ingresos adicionales",null,{"v":300,"d":"300.00 €"}]
[null,null,"Total de ingresos mensuales",null,{"$f":"SUM(E8:E9)","v":{"v":4300,"d":"4,300.00 €"}}]
[]
["Escriba la información en la tabla Alojamiento, empezando por la celda de la derecha y en la tabla Entretenimiento, empezando por la celda G12. La instrucción siguiente se encuentra en la celda A25.","ALOJAMIENTO","Costo previsto","Costo real","Diferencia",null,"ENTRETENIMIENTO","Costo previsto","Costo real","Diferencia"]
[null,"Hipoteca o alquiler",{"v":1000,"d":"1,000.00 €"},{"v":1000,"d":"1,000.00 €"},{"$f":"Alojamiento[[#This Row],[Costo previsto]]-Alojamiento[[#This Row],[Costo real]]","v":{"v":0,"d":"0.00 €"}},null,"Noche de salir",null,null,{"$f":"Entretenimiento[[#This Row],[Costo previsto]]-Entretenimiento[[#This Row],[Costo real]]","v":{"v":0,"d":"0.00 €"}}]
[null,"Teléfono",{"v":54,"d":"54.00 €"},{"v":100,"d":"100.00 €"},{"$f":"Alojamiento[[#This Row],[Costo previsto]]-Alojamiento[[#This Row],[Costo real]]","v":{"v":-46,"d":"-46.00 €"}},null,"Plataformas de música",null,null,{"$f":"Entretenimiento[[#This Row],[Costo previsto]]-Entretenimiento[[#This Row],[Costo real]]","v":{"v":0,"d":"0.00 €"}}]
[null,"Electricidad",{"v":44,"d":"44.00 €"},{"v":56,"d":"56.00 €"},{"$f":"Alojamiento[[#This Row],[Costo previsto]]-Alojamiento[[#This Row],[Costo real]]","v":{"v":-12,"d":"-12.00 €"}},null,"Películas",null,null,{"$f":"Entretenimiento[[#This Row],[Costo previsto]]-Entretenimiento[[#This Row],[Costo real]]","v":{"v":0,"d":"0.00 €"}}]
[null,"Gas",{"v":22,"d":"22.00 €"},{"v":28,"d":"28.00 €"},{"$f":"Alojamiento[[#This Row],[Costo previsto]]-Alojamiento[[#This Row],[Costo real]]","v":{"v":-6,"d":"-6.00 €"}},null,"Conciertos",null,null,{"$f":"Entretenimiento[[#This Row],[Costo previsto]]-Entretenimiento[[#This Row],[Costo real]]","v":{"v":0,"d":"0.00 €"}}]
[null,"Agua y alcantarillado",{"v":8,"d":"8.00 €"},{"v":8,"d":"8.00 €"},{"$f":"Alojamiento[[#This Row],[Costo previsto]]-Alojamiento[[#This Row],[Costo real]]","v":{"v":0,"d":"0.00 €"}},null,"Eventos deportivos",null,null,{"$f":"Entretenimiento[[#This Row],[Costo previsto]]-Entretenimiento[[#This Row],[Costo real]]","v":{"v":0,"d":"0.00 €"}}]
[null,"Televisión por cable",{"v":34,"d":"34.00 €"},{"v":34,"d":"34.00 €"},{"$f":"Alojamiento[[#This Row],[Costo previsto]]-Alojamiento[[#This Row],[Costo real]]","v":{"v":0,"d":"0.00 €"}},null,"Teatro",null,null,{"$f":"Entretenimiento[[#This Row],[Costo previsto]]-Entretenimiento[[#This Row],[Costo real]]","v":{"v":0,"d":"0.00 €"}}]
[null,"Recogida de residuos",{"v":10,"d":"10.00 €"},{"v":10,"d":"10.00 €"},{"$f":"Alojamiento[[#This Row],[Costo previsto]]-Alojamiento[[#This Row],[Costo real]]","v":{"v":0,"d":"0.00 €"}},null,"Otros",null,null,{"$f":"Entretenimiento[[#This Row],[Costo previsto]]-Entretenimiento[[#This Row],[Costo real]]","v":{"v":0,"d":"0.00 €"}}]
[null,"Mantenimiento o reparaciones",{"v":23,"d":"23.00 €"},{"v":0,"d":"0.00 €"},{"$f":"Alojamiento[[#This Row],[Costo previsto]]-Alojamiento[[#This Row],[Costo real]]","v":{"v":23,"d":"23.00 €"}},null,"Otros",null,null,{"$f":"Entretenimiento[[#This Row],[Costo previsto]]-Entretenimiento[[#This Row],[Costo real]]","v":{"v":0,"d":"0.00 €"}}]
[null,"Suministros",{"v":0,"d":"0.00 €"},{"v":0,"d":"0.00 €"},{"$f":"Alojamiento[[#This Row],[Costo previsto]]-Alojamiento[[#This Row],[Costo real]]","v":{"v":0,"d":"0.00 €"}},null,"Otros",null,null,{"$f":"Entretenimiento[[#This Row],[Costo previsto]]-Entretenimiento[[#This Row],[Costo real]]","v":{"v":0,"d":"0.00 €"}}]
[null,"Otros",{"v":0,"d":"0.00 €"},{"v":0,"d":"0.00 €"},{"$f":"Alojamiento[[#This Row],[Costo previsto]]-Alojamiento[[#This Row],[Costo real]]","v":{"v":0,"d":"0.00 €"}},null,"Subtotal",null,null,{"$f":"SUBTOTAL(109,Entretenimiento[Diferencia])","v":{"v":0,"d":"0.00 €"}}]
[null,"Subtotal",null,null,{"$f":"SUBTOTAL(109,Alojamiento[Diferencia])","v":{"v":-41,"d":"-41.00 €"}}]
[{"$nulls":6},"PRÉSTAMOS","Costo previsto","Costo real","Diferencia"]
["Escriba la información en la tabla Transporte, empezando por la celda de la derecha y en la tabla Préstamos, empezando por la celda G24. La instrucción siguiente se encuentra en la celda A35.","TRANSPORTE","Costo previsto","Costo real","Diferencia",null,"Personal",null,null,{"$f":"Préstamos[[#This Row],[Costo previsto]]-Préstamos[[#This Row],[Costo real]]","v":{"v":0,"d":"0.00 €"}}]
[null,"Pago del vehículo",null,null,{"$f":"Transporte[[#This Row],[Costo previsto]]-Transporte[[#This Row],[Costo real]]","v":{"v":0,"d":"0.00 €"}},null,"Estudiante",null,null,{"$f":"Préstamos[[#This Row],[Costo previsto]]-Préstamos[[#This Row],[Costo real]]","v":{"v":0,"d":"0.00 €"}}]
[null,"Gastos de taxi o bus",null,null,{"$f":"Transporte[[#This Row],[Costo previsto]]-Transporte[[#This Row],[Costo real]]","v":{"v":0,"d":"0.00 €"}},null,"Tarjeta de crédito",null,null,{"$f":"Préstamos[[#This Row],[Costo previsto]]-Préstamos[[#This Row],[Costo real]]","v":{"v":0,"d":"0.00 €"}}]
[null,"Seguro",null,null,{"$f":"Transporte[[#This Row],[Costo previsto]]-Transporte[[#This Row],[Costo real]]","v":{"v":0,"d":"0.00 €"}},null,"Tarjeta de crédito",null,null,{"$f":"Préstamos[[#This Row],[Costo previsto]]-Préstamos[[#This Row],[Costo real]]","v":{"v":0,"d":"0.00 €"}}]
[null,"Licencias",null,null,{"$f":"Transporte[[#This Row],[Costo previsto]]-Transporte[[#This Row],[Costo real]]","v":{"v":0,"d":"0.00 €"}},null,"Tarjeta de crédito",null,null,{"$f":"Préstamos[[#This Row],[Costo previsto]]-Préstamos[[#This Row],[Costo real]]","v":{"v":0,"d":"0.00 €"}}]
[null,"Combustible",null,null,{"$f":"Transporte[[#This Row],[Costo previsto]]-Transporte[[#This Row],[Costo real]]","v":{"v":0,"d":"0.00 €"}},null,"Otros",null,null,{"$f":"Préstamos[[#This Row],[Costo previsto]]-Préstamos[[#This Row],[Costo real]]","v":{"v":0,"d":"0.00 €"}}]
[null,"Mantenimiento",null,null,{"$f":"Transporte[[#This Row],[Costo previsto]]-Transporte[[#This Row],[Costo real]]","v":{"v":0,"d":"0.00 €"}},null,"Subtotal",null,null,{"$f":"SUBTOTAL(109,Préstamos[Diferencia])","v":{"v":0,"d":"0.00 €"}}]
[null,"Otros",null,null,{"$f":"Transporte[[#This Row],[Costo previsto]]-Transporte[[#This Row],[Costo real]]","v":{"v":0,"d":"0.00 €"}}]
[null,"Subtotal",null,null,{"$f":"SUBTOTAL(109,Transporte[Diferencia])","v":{"v":0,"d":"0.00 €"}},null,"IMPUESTOS","Costo previsto","Costo real","Diferencia"]
[{"$nulls":6},"Federales",null,null,{"$f":"Impuestos[[#This Row],[Costo previsto]]-Impuestos[[#This Row],[Costo real]]","v":{"v":0,"d":"0.00 €"}}]
["Escriba la información en la tabla Seguro, empezando por la celda de la derecha y en la tabla Impuestos, empezando por la celda G33. La instrucción siguiente se encuentra en la celda A42.","SEGURO","Costo previsto","Costo real","Diferencia",null,"Estatales",null,null,{"$f":"Impuestos[[#This Row],[Costo previsto]]-Impuestos[[#This Row],[Costo real]]","v":{"v":0,"d":"0.00 €"}}]
[null,"Hogar",null,null,{"$f":"Seguro[[#This Row],[Costo previsto]]-Seguro[[#This Row],[Costo real]]","v":{"v":0,"d":"0.00 €"}},null,"Locales",null,null,{"$f":"Impuestos[[#This Row],[Costo previsto]]-Impuestos[[#This Row],[Costo real]]","v":{"v":0,"d":"0.00 €"}}]
[null,"Salud",null,null,{"$f":"Seguro[[#This Row],[Costo previsto]]-Seguro[[#This Row],[Costo real]]","v":{"v":0,"d":"0.00 €"}},null,"Otros",null,null,{"$f":"Impuestos[[#This Row],[Costo previsto]]-Impuestos[[#This Row],[Costo real]]","v":{"v":0,"d":"0.00 €"}}]
[null,"Vida",null,null,{"$f":"Seguro[[#This Row],[Costo previsto]]-Seguro[[#This Row],[Costo real]]","v":{"v":0,"d":"0.00 €"}},null,"Subtotal",null,null,{"$f":"SUBTOTAL(109,Impuestos[Diferencia])","v":{"v":0,"d":"0.00 €"}}]
[null,"Otros",null,null,{"$f":"Seguro[[#This Row],[Costo previsto]]-Seguro[[#This Row],[Costo real]]","v":{"v":0,"d":"0.00 €"}}]
[null,"Subtotal",null,null,{"$f":"SUBTOTAL(109,Seguro[Diferencia])","v":{"v":0,"d":"0.00 €"}},null,"AHORROS O INVERSIONES","Costo previsto","Costo real","Diferencia"]
[{"$nulls":6},"Cuenta de jubilación",null,null,{"$f":"Ahorros[[#This Row],[Costo previsto]]-Ahorros[[#This Row],[Costo real]]","v":{"v":0,"d":"0.00 €"}}]
["Escriba la información en la tabla Comida, empezando por la celda de la derecha y en la tabla Ahorros, empezando por la celda G40. La instrucción siguiente se encuentra en la celda A48.","COMIDA","Costo previsto","Costo real","Diferencia",null,"Cuenta de inversión",null,null,{"$f":"Ahorros[[#This Row],[Costo previsto]]-Ahorros[[#This Row],[Costo real]]","v":{"v":0,"d":"0.00 €"}}]
[null,"Alimentos",null,null,{"$f":"Comida[[#This Row],[Costo previsto]]-Comida[[#This Row],[Costo real]]","v":{"v":0,"d":"0.00 €"}},null,"Otros",null,null,{"$f":"Ahorros[[#This Row],[Costo previsto]]-Ahorros[[#This Row],[Costo real]]","v":{"v":0,"d":"0.00 €"}}]
[null,"Restaurantes",null,null,{"$f":"Comida[[#This Row],[Costo previsto]]-Comida[[#This Row],[Costo real]]","v":{"v":0,"d":"0.00 €"}},null,"Subtotal",null,null,{"$f":"SUBTOTAL(109,Ahorros[Diferencia])","v":{"v":0,"d":"0.00 €"}}]
[null,"Otros",null,null,{"$f":"Comida[[#This Row],[Costo previsto]]-Comida[[#This Row],[Costo real]]","v":{"v":0,"d":"0.00 €"}}]
[null,"Subtotal",null,null,{"$f":"SUBTOTAL(109,Comida[Diferencia])","v":{"v":0,"d":"0.00 €"}},null,"REGALOS Y DONACIONES","Costo previsto","Costo real","Diferencia"]
[{"$nulls":6},"Organización benéfica 1",null,null,{"$f":"Regalos[[#This Row],[Costo previsto]]-Regalos[[#This Row],[Costo real]]","v":{"v":0,"d":"0.00 €"}}]
["Escriba la información en la tabla Mascotas, empezando por la celda de la derecha y en la tabla Regalos, empezando por la celda G46. La instrucción siguiente se encuentra en la celda A56.","MASCOTAS","Costo previsto","Costo real","Diferencia",null,"Organización benéfica 2",null,null,{"$f":"Regalos[[#This Row],[Costo previsto]]-Regalos[[#This Row],[Costo real]]","v":{"v":0,"d":"0.00 €"}}]
[null,"Comida",null,null,{"$f":"Mascotas[[#This Row],[Costo previsto]]-Mascotas[[#This Row],[Costo real]]","v":{"v":0,"d":"0.00 €"}},null,"Organización benéfica 3",null,null,{"$f":"Regalos[[#This Row],[Costo previsto]]-Regalos[[#This Row],[Costo real]]","v":{"v":0,"d":"0.00 €"}}]
[null,"Médicos",null,null,{"$f":"Mascotas[[#This Row],[Costo previsto]]-Mascotas[[#This Row],[Costo real]]","v":{"v":0,"d":"0.00 €"}},null,"Subtotal",null,null,{"$f":"SUBTOTAL(109,Regalos[Diferencia])","v":{"v":0,"d":"0.00 €"}}]
[null,"Limpieza",null,null,{"$f":"Mascotas[[#This Row],[Costo previsto]]-Mascotas[[#This Row],[Costo real]]","v":{"v":0,"d":"0.00 €"}}]
[null,"Juguetes",null,null,{"$f":"Mascotas[[#This Row],[Costo previsto]]-Mascotas[[#This Row],[Costo real]]","v":{"v":0,"d":"0.00 €"}},null,"LEGAL","Costo previsto","Costo real","Diferencia"]
[null,"Otros",null,null,{"$f":"Mascotas[[#This Row],[Costo previsto]]-Mascotas[[#This Row],[Costo real]]","v":{"v":0,"d":"0.00 €"}},null,"Abogados",null,null,{"$f":"Legal[[#This Row],[Costo previsto]]-Legal[[#This Row],[Costo real]]","v":{"v":0,"d":"0.00 €"}}]
[null,"Subtotal",null,null,{"$f":"SUBTOTAL(109,Mascotas[Diferencia])","v":{"v":0,"d":"0.00 €"}},null,"Pensión alimenticia",null,null,{"$f":"Legal[[#This Row],[Costo previsto]]-Legal[[#This Row],[Costo real]]","v":{"v":0,"d":"0.00 €"}}]
[{"$nulls":6},"Pagos por retención o fallo",null,null,{"$f":"Legal[[#This Row],[Costo previsto]]-Legal[[#This Row],[Costo real]]","v":{"v":0,"d":"0.00 €"}}]
["Escriba la información en la tabla Cuidado personal, empezando por la celda de la derecha y en la tabla Legal, empezando por la celda G52. La instrucción siguiente se encuentra en la celda A59.","CUIDADO PERSONAL","Costo previsto","Costo real","Diferencia",null,"Otros",null,null,{"$f":"Legal[[#This Row],[Costo previsto]]-Legal[[#This Row],[Costo real]]","v":{"v":0,"d":"0.00 €"}}]
[null,"Médicos",null,null,{"$f":"CuidadoPersonal[[#This Row],[Costo previsto]]-CuidadoPersonal[[#This Row],[Costo real]]","v":{"v":0,"d":"0.00 €"}},null,"Subtotal",null,null,{"$f":"SUBTOTAL(109,Legal[Diferencia])","v":{"v":0,"d":"0.00 €"}}]
[null,"Pelo y uñas",null,null,{"$f":"CuidadoPersonal[[#This Row],[Costo previsto]]-CuidadoPersonal[[#This Row],[Costo real]]","v":{"v":0,"d":"0.00 €"}}]
["El total de gastos previstos se calcula automáticamente en la celda J59; el total del gasto real, en la J61; y la diferencia total, en la celda J63.","Ropa",null,null,{"$f":"CuidadoPersonal[[#This Row],[Costo previsto]]-CuidadoPersonal[[#This Row],[Costo real]]","v":{"v":0,"d":"0.00 €"}},null,"COSTO PREVISTO TOTAL",null,null,{"$f":"SUBTOTAL(109,Alojamiento[Costo previsto],Transporte[Costo previsto],Seguro[Costo previsto],Comida[Costo previsto],Mascotas[Costo previsto],CuidadoPersonal[Costo previsto],Entretenimiento[Costo previsto],Préstamos[Costo previsto],Impuestos[Costo previsto],Ahorros[Costo previsto],Regalos[Costo previsto],Legal[Costo previsto])","v":{"v":1195,"d":"1,195.00 €"}}]
[null,"Tintorería",null,null,{"$f":"CuidadoPersonal[[#This Row],[Costo previsto]]-CuidadoPersonal[[#This Row],[Costo real]]","v":{"v":0,"d":"0.00 €"}}]
[null,"Gimnasio",null,null,{"$f":"CuidadoPersonal[[#This Row],[Costo previsto]]-CuidadoPersonal[[#This Row],[Costo real]]","v":{"v":0,"d":"0.00 €"}},null,"GASTO REAL TOTAL",null,null,{"$f":"SUBTOTAL(109,Alojamiento[Costo real],Transporte[Costo real],Seguro[Costo real],Comida[Costo real],Mascotas[Costo real],CuidadoPersonal[Costo real],Entretenimiento[Costo real],Préstamos[Costo real],Impuestos[Costo real],Ahorros[Costo real],Regalos[Costo real],Legal[Costo real])","v":{"v":1236,"d":"1,236.00 €"}}]
[null,"Tasas o cuotas de la organización",null,null,{"$f":"CuidadoPersonal[[#This Row],[Costo previsto]]-CuidadoPersonal[[#This Row],[Costo real]]","v":{"v":0,"d":"0.00 €"}}]
[null,"Otros",null,null,{"$f":"CuidadoPersonal[[#This Row],[Costo previsto]]-CuidadoPersonal[[#This Row],[Costo real]]","v":{"v":0,"d":"0.00 €"}},null,"DIFERENCIA TOTAL",null,null,{"$f":"J59-J61","v":{"v":-41,"d":"-41.00 €"}}]
[null,"Subtotal",null,null,{"$f":"SUBTOTAL(109,CuidadoPersonal[Diferencia])","v":{"v":0,"d":"0.00 €"}}]